bitfinex-derivatives/quotes_SOLF0:USTF0_20250730
["timestamp","ask_amount","ask_price","bid_price","bid_amount"]
[1753856086747,3.23,181.34,181.29,3.1]
[1753856087449,3.23,181.33,181.29,3.1]
[1753856088055,3.23,181.36,181.31,3.1]
[1753856088350,3.23,181.36,181.33,3.1]
[1753856088546,3.23,181.36,181.34,5.5148]
[1753856088744,3.23,181.36,181.35,3.1]
[1753856093360,3.23,181.36,181.34,3.02]
[1753856096164,3.23,181.36,181.35,3.02]
[1753856099867,3.23,181.36,181.35,8.5347]
[1753856100772,5.96228582,181.41,181.35,3.02]
[1753856101067,3.25,181.4,181.37,8.5339]
[1753856101270,3.25,181.4,181.38,3.02]
[1753856103471,8.7633,181.4,181.38,3.02]
[1753856103676,2.71228582,181.39,181.36,117.28]
[1753856103973,3.25,181.38,181.36,117.28]
[1753856104372,3.25,181.37,181.36,117.28]
[1753856105272,3.25,181.37,181.36,120.3]
[1753856105472,8.7641,181.37,181.36,117.28]
[1753856105673,5.5141,181.37,181.33,122.7752]
[1753856105873,3.25,181.36,181.35,3.02]
[1753856107571,3.25,181.36,181.33,117.26]
[1753856107773,5.96228582,181.35,181.31,3.02]
[1753856107971,3.25,181.41,181.33,2.71228582]
[1753856108177,7.32869547,181.46,181.38,3.02]
[1753856108373,3.25,181.43,181.35,2.71228582]
[1753856108673,2.71228582,181.44,181.32,3.02]
[1753856108674,2.71228582,181.36,181.32,3.02]
[1753856108876,3.25,181.35,181.31,117.52]
[1753856109065,3.25,181.35,181.32,3.02]
[1753856109265,3.25,181.35,181.31,117.52]
[1753856109464,3.25,181.35,181.34,3.02]
[1753856109669,3.25,181.35,181.32,3.02]
[1753856110069,8.7649,181.35,181.29,117.56]
[1753856110266,3.25,181.34,181.3,3.02]
[1753856110465,3.25,181.33,181.31,3.02]
[1753856110672,3.25,181.32,181.31,3.02]
[1753856111269,3.25,181.32,181.29,117.56]
[1753856111475,2.71228582,181.32,181.29,117.56]
[1753856111778,3.25,181.29,181.27,3.02]
[1753856112677,3.25,181.28,181.27,3.02]
[1753856113877,3.25,181.28,181.25,123.0777]
[1753856114079,3.25,181.27,181.26,3.02]
[1753856114378,3.25,181.27,181.25,120.58]
[1753856114772,5.5172,181.27,181.25,3.02]
[1753856114968,3.25,181.26,181.23,3.02]
[1753856115373,11.47998582,181.26,181.23,3.02]
[1753856115577,3.25,181.25,181.23,3.02]
[1753856115980,8.22998582,181.26,181.23,3.02]
[1753856116175,3.25,181.24,181.23,3.02]
[1753856116577,3.25,181.29,181.24,3.02]
[1753856116881,3.25,181.28,181.24,3.02]
[1753856117076,8.7663,181.3,181.26,3.02]
[1753856117282,3.25,181.29,181.26,3.02]
[1753856117581,3.25,181.29,181.27,5.5171]
[1753856117775,2.71228582,181.31,181.28,3.02]
[1753856117776,3.25,181.31,181.28,3.02]
[1753856117975,3.25,181.3,181.28,3.02]
[1753856118276,2.71228582,181.33,181.27,3.02]
[1753856118277,3.25,181.32,181.27,3.02]
[1753856119075,3.25,181.32,181.28,3.02]
[1753856119274,3.25,181.32,181.29,3.02]
[1753856119476,3.25,181.32,181.3,3.02]
[1753856119677,2.71228582,181.35,181.29,3.02]
[1753856119884,3.25,181.34,181.29,2.71228582]
[1753856120077,3.25,181.34,181.3,3.02]
[1753856120282,3.25,181.34,181.32,3.02]
[1753856120679,2.71228582,181.37,181.32,3.02]
[1753856120984,4.12285837,181.36,181.32,3.02]
[1753856121282,3.25,181.38,181.32,3.02]
[1753856121586,3.16,181.35,181.32,3.02]
[1753856122179,3.16,181.35,181.34,3.03]
[1753856122778,2.71228582,181.39,181.34,3.03]
[1753856122978,3.16,181.36,181.33,5.5153]
[1753856123383,3.16,181.35,181.34,3.03]
[1753856123584,2.71228582,181.39,181.31,2.71228582]
[1753856123886,3.16,181.33,181.31,2.71228582]
[1753856124384,3.16,181.33,181.32,3.03]
[1753856125183,3.16,181.33,181.3,120.73]
[1753856125386,3.16,181.33,181.31,3.03]
[1753856126486,8.6756,181.32,181.31,3.03]
[1753856127190,8.6756,181.32,181.3,117.7]
[1753856127486,3.16,181.31,181.3,120.73]
[1753856127888,8.6759,181.31,181.3,120.73]
[1753856128187,8.6759,181.31,181.25,2.71228582]
[1753856128188,5.5159,181.31,181.28,3.03]
[1753856128389,3.16,181.29,181.28,3.03]
[1753856129087,8.22818582,181.31,181.28,3.03]
[1753856129388,3.16,181.3,181.26,3.03]
[1753856129687,3.16,181.3,181.27,3.03]
[1753856130290,8.22818582,181.31,181.27,5.5171]
[1753856130588,3.16,181.29,181.28,3.03]
[1753856132288,3.16,181.3,181.29,3.03]
[1753856132990,3.16,181.34,181.29,3.03]
[1753856133592,5.5154,181.33,181.29,5.5164]
[1753856133792,3.16,181.31,181.29,5.5164]
[1753856134295,3.16,181.31,181.3,3.03]
[1753856134685,3.16,181.32,181.28,3.03]
[1753856134880,3.16,181.32,181.27,3.03]
[1753856135086,3.16,181.32,181.29,5.5163]
[1753856135392,3.16,181.32,181.3,3.03]
[1753856135692,3.16,181.31,181.3,3.03]
[1753856135890,2.71228582,181.33,181.3,3.03]
[1753856136094,8.6753,181.33,181.3,3.03]
[1753856136393,3.16,181.33,181.3,3.03]
[1753856136892,2.71228582,181.35,181.3,3.03]
[1753856137095,3.16,181.32,181.3,3.03]
[1753856137288,2.71228582,181.38,181.33,5.5152]
[1753856137593,3.16,181.36,181.33,5.5152]
[1753856137794,3.16,181.36,181.34,3.03]
[1753856137986,2.71228582,181.38,181.32,5.5155]
[1753856138290,3.16,181.35,181.33,3.03]
[1753856139188,3.16,181.35,181.33,8.5453]
[1753856140691,3.16,181.34,181.33,8.5453]
[1753856140887,5.5145,181.36,181.33,8.5453]
[1753856141094,8.6742,181.37,181.34,3.03]
[1753856141594,3.16,181.36,181.34,3.03]
[1753856141891,3.16,181.36,181.35,3.03]
[1753856142190,5.5142,181.37,181.35,3.03]
[1753856142391,4.61640965,181.42,181.37,3.03]
[1753856142594,4.12662846,181.41,181.39,2.71228582]
[1753856142892,9.2252471,181.48,181.4,3.03]
[1753856142893,7.77640965,181.45,181.4,3.03]
[1753856143090,7.28537829,181.44,181.4,3.03]
[1753856143285,4.12537829,181.43,181.42,8.5426]
[1753856143992,7.28537829,181.43,181.42,3.03]
[1753856144600,7.28537829,181.43,181.42,8.5426]
[1753856144901,4.12537829,181.43,181.42,8.5426]
[1753856145887,3.16,181.45,181.42,5.5126]
[1753856146093,3.16,181.45,181.44,3.03]
[1753856147094,3.16,181.45,181.43,3.03]
[1753856147895,3.16,181.44,181.43,3.03]
[1753856148194,3.16,181.44,181.41,11.25508582]
[1753856148391,3.16,181.43,181.41,3.03]
[1753856148695,2.71228582,181.48,181.39,2.71228582]
[1753856148696,3.16,181.42,181.39,2.71228582]
[1753856149196,3.16,181.42,181.41,8.5428]
[1753856149691,3.16,181.43,181.41,5.5128]
[1753856149887,5.5113,181.47,181.42,3.03]
[1753856150089,3.16,181.45,181.42,3.03]
[1753856150790,3.16,181.45,181.44,3.03]
[1753856152195,3.09,181.46,181.44,3.03]
[1753856152393,3.09,181.51,181.45,5.5114]
[1753856152784,3.09,181.48,181.47,3.0]
[1753856153484,3.09,181.47,181.45,3.0]
[1753856153693,3.09,181.46,181.45,3.0]
[1753856155895,3.09,181.51,181.43,11.22448582]
[1753856156404,3.09,181.49,181.44,3.0]
[1753856157197,3.09,181.46,181.45,3.0]
[1753856157400,5.5111,181.47,181.44,3.0]
[1753856157592,3.09,181.45,181.44,3.0]
[1753856159400,2.71228582,181.48,181.37,3.0]
[1753856159592,3.09,181.47,181.41,3.0]
[1753856160099,3.09,181.46,181.44,3.0]
[1753856160300,3.09,181.48,181.45,3.0]
[1753856160502,3.09,181.48,181.45,8.5114]
[1753856160698,3.09,181.48,181.46,3.0]
[1753856161802,3.09,181.48,181.47,3.0]
[1753856162001,8.6007,181.48,181.45,5.5114]
[1753856162304,3.09,181.47,181.46,3.0]
[1753856163101,3.09,181.47,181.46,8.5113]
[1753856163296,3.09,181.47,181.46,3.0]
[1753856164292,3.09,181.51,181.46,3.0]
[1753856164497,5.5107,181.49,181.46,5.5113]
[1753856164697,3.09,181.48,181.47,3.0]
[1753856164999,3.09,181.48,181.44,2.71228582]
[1753856165201,5.5109,181.48,181.46,3.0]
[1753856165504,3.09,181.47,181.46,3.0]
[1753856166098,3.09,181.49,181.41,2.71228582]
[1753856166304,3.09,181.49,181.42,3.0]
[1753856166903,3.09,181.49,181.43,2.71228582]
[1753856167103,3.09,181.48,181.44,3.0]
[1753856167403,3.09,181.48,181.45,3.0]
[1753856168107,5.5112,181.47,181.45,3.0]
[1753856168302,3.09,181.46,181.45,3.0]
[1753856168993,3.09,181.55,181.45,3.0]
[1753856169199,3.09,181.53,181.45,5.71228582]
[1753856169405,3.09,181.52,181.46,3.0]
[1753856169609,3.09,181.49,181.46,8.5112]
[1753856169897,3.09,181.49,181.44,3.0]
[1753856170097,2.71228582,181.49,181.44,3.0]
[1753856170300,3.09,181.46,181.41,3.0]
[1753856170503,3.09,181.46,181.42,3.0]
[1753856172306,5.5121,181.44,181.42,3.0]
[1753856172507,3.09,181.43,181.42,3.0]
[1753856174804,8.6023,181.43,181.38,236.09565914]
[1753856175005,5.5123,181.43,181.39,8.5132]
[1753856175203,3.09,181.41,181.4,3.0]
[1753856176510,5.80228582,181.41,181.38,118.70337332]
[1753856176698,3.09,181.4,181.38,118.70337332]
[1753856176905,8.6034,181.4,181.38,118.70337332]
[1753856177207,3.09,181.39,181.38,118.70337332]
[1753856177504,3.09,181.4,181.39,3.0]
[1753856177711,3.09,181.43,181.4,3.0]
[1753856178807,5.512,181.44,181.4,3.0]
[1753856179207,3.09,181.44,181.42,3.0]
[1753856180218,5.5116,181.46,181.43,3.0]
[1753856180405,8.6016,181.46,181.43,3.0]
[1753856180711,8.6016,181.46,181.4,2.71228582]
[1753856180712,3.09,181.45,181.44,3.0]
[1753856180905,3.09,181.46,181.44,3.0]
[1753856181504,3.09,181.46,181.44,8.5119]
[1753856181703,3.09,181.46,181.45,3.12]
[1753856182810,5.5111,181.47,181.43,5.5122]
[1753856183011,3.1,181.45,181.44,3.12]
[1753856183314,5.5111,181.47,181.44,3.12]
[1753856183613,3.1,181.46,181.44,3.12]
[1753856184412,8.6114,181.46,181.44,3.12]
[1753856184613,3.1,181.45,181.44,3.12]
[1753856185314,3.1,181.45,181.42,8.6325]
[1753856185516,3.1,181.45,181.43,3.12]
[1753856185706,3.1,181.44,181.43,3.12]
[1753856186016,5.5114,181.46,181.42,8.6325]
[1753856186017,3.1,181.43,181.42,8.6325]
[1753856187311,3.1,181.42,181.41,8.6328]
[1753856187817,5.5117,181.45,181.41,8.6328]
[1753856188019,5.5117,181.45,181.43,3.12]
[1753856188812,3.1,181.44,181.43,3.12]
[1753856189013,3.1,181.44,181.41,3.12]
[1753856189220,3.1,181.44,181.4,120.8]
[1753856190116,3.1,181.42,181.4,120.8]
[1753856190317,5.5123,181.43,181.41,3.12]
[1753856190918,3.1,181.42,181.41,3.12]
[1753856194018,3.1,181.42,181.4,117.68]
[1753856194218,8.6126,181.42,181.4,120.8]
[1753856194622,3.1,181.41,181.4,120.8]
[1753856194823,3.1,181.41,181.4,117.68]
[1753856194824,8.6129,181.41,181.4,117.68]
[1753856195025,4.61640965,181.47,181.38,3.12]
[1753856195026,3.1,181.4,181.38,3.12]
[1753856195513,3.1,181.39,181.38,3.12]
[1753856196324,3.1,181.39,181.37,120.64]
[1753856197526,3.1,181.38,181.37,117.52]
[1753856197925,5.514,181.38,181.34,5.5149]
[1753856198126,3.1,181.37,181.36,3.12]
[1753856198724,3.1,181.4,181.38,3.12]
[1753856199529,3.1,181.4,181.38,8.6337]
[1753856199727,3.1,181.4,181.39,3.12]
[1753856201223,3.1,181.39,181.37,3.12]
[1753856201419,3.1,181.39,181.34,117.54]
[1753856201626,3.1,181.39,181.35,3.12]
[1753856201828,3.1,181.39,181.36,3.12]
[1753856202128,8.6137,181.39,181.36,3.12]
[1753856202332,3.1,181.38,181.35,3.12]
[1753856202519,3.1,181.38,181.34,117.54]
[1753856202520,3.1,181.36,181.34,117.54]
[1753856202719,8.22698582,181.35,181.31,120.66]
[1753856202919,3.1,181.34,181.31,117.54]
[1753856203134,3.1,181.34,181.32,3.12]
[1753856203424,3.1,181.34,181.33,8.6353]
[1753856204232,3.1,181.34,181.33,3.12]
[1753856207937,3.1,181.35,181.33,3.12]
[1753856209132,3.1,181.35,181.34,5.5148]
[1753856209338,3.1,181.35,181.34,8.6348]
[1753856209738,8.22618582,181.38,181.35,5.5146]
[1753856209945,3.1,181.37,181.36,3.12]
[1753856210238,5.5133,181.4,181.37,8.6338]
[1753856210439,3.1,181.39,181.38,3.12]
[1753856210630,3.1,181.41,181.38,3.12]
[1753856210835,3.1,181.41,181.39,5.5133]
[1753856211035,3.1,181.41,181.4,3.12]
[1753856212437,3.1,181.41,181.4,8.6332]
[1753856212644,3.18,181.45,181.4,3.12]
[1753856212840,3.18,181.47,181.41,2.98]
[1753856213144,3.18,181.48,181.45,2.98]
[1753856213442,7.28862208,181.47,181.46,2.98]
[1753856213847,3.18,181.49,181.46,2.98]
[1753856214041,4.10863105,181.48,181.46,2.98]
[1753856214234,3.18,181.49,181.47,5.511]
[1753856214440,3.18,181.49,181.48,2.98]
[1753856214837,3.18,181.51,181.48,2.98]
[1753856215043,3.18,181.5,181.49,2.98]
[1753856215444,5.5096,181.52,181.49,2.98]
[1753856215644,7.28860447,181.51,181.5,2.98]
[1753856215845,3.18,181.53,181.47,2.98]
[1753856216045,4.10850422,181.52,181.47,2.98]
[1753856216341,3.18,181.51,181.5,2.98]
[1753856221552,3.18,181.51,181.48,2.98]
[1753856221750,3.18,181.51,181.47,11.20328582]
[1753856221950,3.18,181.51,181.48,2.98]
[1753856223248,3.18,181.51,181.49,2.98]
[1753856224248,3.18,181.5,181.47,5.69228582]
[1753856224454,3.18,181.51,181.44,2.98]
[1753856225656,3.18,181.48,181.46,2.98]
[1753856225858,3.18,181.48,181.47,2.98]
[1753856234964,3.18,181.48,181.45,5.5116]
[1753856235170,3.18,181.48,181.45,8.4916]
[1753856235765,3.18,181.47,181.45,8.4916]
[1753856237060,3.18,181.46,181.45,5.5116]
[1753856237261,3.18,181.48,181.43,2.71228582]
[1753856237568,3.18,181.5,181.43,2.71228582]
[1753856237762,3.18,181.51,181.46,2.98]
[1753856237965,3.18,181.5,181.46,2.98]
[1753856238467,2.71228582,181.56,181.48,2.98]
[1753856238668,3.18,181.52,181.48,2.98]
[1753856238862,3.18,181.52,181.51,2.98]
[1753856239860,3.18,181.52,181.49,8.4904]
[1753856240066,3.18,181.52,181.47,2.98]
[1753856240262,5.5104,181.5,181.46,5.5112]
[1753856240567,3.18,181.49,181.48,2.98]
[1753856243071,3.18,181.49,181.47,5.511]
[1753856243267,3.18,181.49,181.47,8.581]
[1753856243468,3.16,181.48,181.47,8.581]
[1753856245671,3.16,181.53,181.49,3.07]
[1753856246473,5.51,181.51,181.49,3.07]
[1753856246673,3.16,181.5,181.49,3.07]
[1753856248770,3.16,181.5,181.49,8.5804]
[1753856249082,3.16,181.52,181.49,3.07]
[1753856249374,3.16,181.51,181.5,5.5101]
[1753856249575,3.16,181.51,181.5,8.5801]
[1753856250275,3.16,181.53,181.52,3.07]
[1753856251278,7.32207616,181.62,181.52,3.07]
[1753856251279,3.16,181.58,181.52,3.07]
[1753856252372,4.08509716,181.57,181.52,3.07]
[1753856252569,3.16,181.56,181.53,3.07]
[1753856252765,2.71228582,181.59,181.52,5.5095]
[1753856252972,3.16,181.57,181.52,3.07]
[1753856253168,5.5086,181.56,181.53,5.5089]
[1753856253369,3.16,181.55,181.54,3.07]
[1753856253876,8.6686,181.55,181.54,3.07]
[1753856257280,12.7682156,181.55,181.54,3.07]
[1753856257477,5.5091,181.54,181.51,8.22208582]
[1753856257674,3.16,181.53,181.5,3.07]
[1753856258075,8.6693,181.53,181.51,3.07]
[1753856258274,3.16,181.52,181.51,3.07]
[1753856263187,8.6695,181.52,181.51,3.07]
[1753856263575,4.60979034,181.58,181.49,3.07]
[1753856263576,3.16,181.51,181.49,3.07]
[1753856263978,5.5102,181.5,181.49,3.07]
[1753856264282,8.6702,181.5,181.49,3.07]
[1753856264489,3.16,181.5,181.49,3.07]
[1753856267980,3.16,181.49,181.48,5.5107]
[1753856268188,3.16,181.49,181.48,8.5807]
[1753856269884,5.5096,181.52,181.49,5.5101]
[1753856270183,5.5096,181.52,181.42,117.28]
[1753856270184,3.16,181.52,181.47,2.71228582]
[1753856270485,3.16,181.52,181.48,3.07]
[1753856271181,8.6695,181.52,181.5,5.5101]
[1753856271481,3.16,181.52,181.51,3.1]
[1753856272181,3.08,181.53,181.52,3.1]
[1753856272689,3.08,181.56,181.52,3.1]
[1753856272888,3.08,181.56,181.49,2.71228582]
[1753856272889,7.17883025,181.55,181.54,3.1]
[1753856273184,4.09883025,181.55,181.54,3.1]
[1753856273385,4.09883025,181.55,181.54,8.6089]
[1753856275783,5.5082,181.57,181.54,5.5089]
[1753856275979,5.5082,181.57,181.55,3.1]
[1753856275980,7.17872439,181.56,181.55,3.1]
[1753856276184,12.68702439,181.56,181.55,3.1]
[1753856279087,5.5087,181.55,181.52,5.5095]
[1753856279387,3.08,181.54,181.52,5.5095]
[1753856279783,3.08,181.54,181.53,3.1]
[1753856280393,3.08,181.54,181.53,8.6092]
[1753856281189,3.08,181.54,181.53,3.1]
[1753856285689,3.08,181.54,181.52,5.5094]
[1753856285890,3.08,181.54,181.52,8.6094]
[1753856286086,3.08,181.54,181.52,5.5094]
[1753856286388,3.08,181.53,181.52,3.1]
[1753856286691,3.08,181.53,181.51,3.1]
[1753856286991,3.08,181.52,181.51,3.1]
[1753856287888,3.08,181.54,181.52,3.1]
[1753856288083,7.68979034,181.6,181.54,3.1]
[1753856288284,4.09988393,181.59,181.54,3.1]
[1753856288492,3.08,181.57,181.54,3.1]
[1753856288689,4.09988393,181.56,181.46,3.1]
[1753856288888,4.09988393,181.56,181.44,19.27228582]
[1753856288889,3.08,181.54,181.52,2.71228582]
[1753856289084,3.08,181.55,181.54,5.5087]
[1753856289488,3.08,181.55,181.54,8.6087]
[1753856289888,3.08,181.57,181.56,3.1]
[1753856290289,7.18042188,181.57,181.56,3.1]
[1753856290791,7.18042188,181.57,181.52,2.71228582]
[1753856290989,7.35165714,181.61,181.52,2.71228582]
[1753856290990,3.08,181.55,181.53,3.1]
[1753856291189,3.08,181.6,181.53,8.6091]
[1753856291392,3.08,181.57,181.54,3.1]
[1753856291591,3.08,181.57,181.53,5.5091]
[1753856291890,3.08,181.57,181.55,3.1]
[1753856292288,3.08,181.56,181.54,3.1]
[1753856292489,3.08,181.56,181.51,3.1]
[1753856292688,3.08,181.56,181.52,3.1]
[1753856292891,3.08,181.56,181.5,2.71228582]
[1753856293100,3.08,181.54,181.53,3.1]
[1753856294694,3.08,181.57,181.54,3.1]
[1753856294894,3.08,181.57,181.53,3.1]
[1753856295189,3.08,181.57,181.54,5.5086]
[1753856295388,3.08,181.57,181.55,3.1]
[1753856296094,3.08,181.56,181.55,3.1]
[1753856296792,3.08,181.56,181.54,3.1]
[1753856296995,2.71228582,181.61,181.44,2.71228582]
[1753856296996,5.5092,181.53,181.48,2.71228582]
[1753856297195,3.08,181.56,181.49,3.1]
[1753856297890,3.08,181.53,181.51,3.1]
[1753856298192,3.08,181.56,181.5,2.71228582]
[1753856298393,3.08,181.56,181.52,5.5093]
[1753856298594,3.08,181.56,181.5,2.71228582]
[1753856298595,3.08,181.55,181.53,3.1]
[1753856298995,3.08,181.55,181.53,5.509]
[1753856299196,3.08,181.55,181.54,3.1]
[1753856302202,3.08,181.55,181.53,8.609]
[1753856302397,3.05,181.54,181.53,5.509]
[1753856302703,3.05,181.56,181.54,5.5087]
[1753856302903,3.05,181.55,181.54,8.6087]
[1753856303104,3.05,181.55,181.54,3.1]
[1753856304609,3.05,181.55,181.53,3.1]
[1753856305198,5.5089,181.54,181.5,2.71228582]
[1753856305403,3.05,181.53,181.49,3.1]
[1753856305799,5.5097,181.52,181.48,5.5107]
[1753856306004,3.05,181.51,181.5,3.1]
[1753856307608,3.05,181.51,181.49,5.5102]
[1753856307806,3.05,181.51,181.49,8.6102]
[1753856308603,3.05,181.51,181.49,3.1]
[1753856308801,5.51,181.51,181.48,5.5106]
[1753856309007,3.05,181.5,181.48,8.6106]
[1753856309306,3.05,181.5,181.48,3.1]
[1753856309508,3.05,181.49,181.48,3.1]
[1753856310602,3.05,181.49,181.47,5.511]
[1753856310807,3.05,181.48,181.47,5.511]
[1753856311508,3.05,181.48,181.47,8.611]
[1753856311807,5.5099,181.51,181.48,5.5107]
[1753856312009,3.05,181.49,181.48,5.5107]
[1753856312605,3.05,181.51,181.5,8.6101]
[1753856312911,3.05,181.51,181.5,3.1]
[1753856313111,3.05,181.51,181.46,2.71228582]
[1753856313304,3.05,181.51,181.48,3.1]
[1753856313508,3.05,181.51,181.47,3.1]
[1753856313709,3.05,181.53,181.47,3.1]
[1753856314411,3.05,181.53,181.49,3.1]
[1753856314811,3.05,181.53,181.52,8.6095]
[1753856315613,3.05,181.56,181.5,2.71228582]
[1753856315810,3.05,181.54,181.5,3.1]
[1753856316015,3.05,181.54,181.51,3.1]
[1753856316405,3.05,181.54,181.51,5.5096]
[1753856316611,3.05,181.54,181.52,3.1]
[1753856316812,3.05,181.55,181.49,3.1]
[1753856317116,3.05,181.53,181.5,8.61]
[1753856317410,3.05,181.53,181.5,5.51]
[1753856317610,3.05,181.53,181.5,8.61]
[1753856317815,3.05,181.52,181.47,3.1]
[1753856318417,3.05,181.51,181.49,3.1]
[1753856318809,3.05,181.5,181.46,119.97228582]
[1753856319010,5.5097,181.52,181.46,119.97228582]
[1753856319209,3.05,181.49,181.47,3.1]
[1753856319414,3.05,181.51,181.49,3.1]
[1753856320614,3.05,181.5,181.49,3.1]
[1753856322823,3.05,181.5,181.49,8.6104]
[1753856323016,3.05,181.51,181.5,3.1]
[1753856323319,2.71228582,181.56,181.5,5.5101]
[1753856323518,3.05,181.52,181.51,3.1]
[1753856324117,3.05,181.52,181.51,8.6098]
[1753856324318,3.05,181.52,181.51,3.1]
[1753856324922,3.05,181.52,181.51,8.6098]
[1753856325220,3.05,181.52,181.51,3.1]
[1753856325721,3.05,181.51,181.49,3.1]
[1753856325920,3.05,181.51,181.48,2.71228582]
[1753856325921,3.05,181.51,181.47,3.1]
[1753856326120,3.05,181.49,181.47,3.1]
[1753856326321,3.05,181.49,181.46,5.5111]
[1753856326622,3.05,181.49,181.46,8.6111]
[1753856327316,5.5104,181.49,181.46,8.6111]
[1753856327522,3.05,181.48,181.45,8.6116]
[1753856328421,2.71228582,181.52,181.45,8.6116]
[1753856328422,4.63937132,181.55,181.45,3.1]
[1753856328717,7.35165714,181.55,181.47,3.1]
[1753856328917,3.05,181.53,181.47,3.1]
[1753856329113,3.05,181.54,181.51,3.1]
[1753856329312,5.5087,181.55,181.48,2.71228582]
[1753856329519,3.05,181.53,181.5,5.5099]
[1753856329914,2.71228582,181.55,181.49,3.1]
[1753856330121,3.05,181.5,181.49,3.1]
[1753856330619,3.05,181.5,181.49,8.6102]
[1753856330822,3.05,181.5,181.49,3.1]
[1753856331921,3.05,181.5,181.49,3.15]
[1753856332525,3.05,181.5,181.49,8.6604]
[1753856332929,3.05,181.5,181.49,3.15]
[1753856333428,3.05,181.5,181.47,3.15]
[1753856333623,3.03,181.49,181.47,3.15]
[1753856334428,3.03,181.48,181.47,3.15]
[1753856335831,3.03,181.48,181.47,8.661]
[1753856336230,8.5402,181.5,181.47,8.661]
[1753856336433,2.71228582,181.54,181.48,5.5105]
[1753856336729,3.03,181.5,181.49,3.15]
[1753856337230,8.5397,181.52,181.49,3.15]
[1753856337432,3.03,181.51,181.49,3.15]
[1753856338227,3.03,181.51,181.49,8.6604]
[1753856338530,3.03,181.51,181.5,3.15]
[1753856340235,3.03,181.51,181.46,2.71228582]
[1753856340236,3.03,181.51,181.48,3.15]
[1753856340632,3.03,181.51,181.46,2.71228582]
[1753856340825,3.03,181.5,181.47,3.15]
[1753856341031,3.03,181.49,181.48,3.15]
[1753856341230,3.03,181.54,181.48,3.15]
[1753856341430,3.03,181.52,181.49,5.5103]
[1753856341631,3.03,181.52,181.5,3.15]
[1753856341831,3.03,181.54,181.48,2.71228582]
[1753856342330,3.03,181.54,181.49,3.15]
[1753856342533,3.03,181.54,181.52,3.15]
[1753856344731,3.03,181.54,181.52,8.6594]
[1753856345436,3.03,181.54,181.53,3.15]
[1753856345728,3.03,181.58,181.55,3.15]
[1753856345934,4.08981396,181.57,181.55,3.15]